Cogmind - Beta 11 X7 @@@ ROGUE MODE // 2021.09.03 @ 23:47:54 Player: PhenomPhear Result: Self-destructed Performance ------------- Evolutions (3) 1500 Regions Visited (8) 1600 Robots Destroyed (68) 340 Value Destroyed (2571) 2571 Prototype IDs (5) 100 Alien Tech Used (0) 0 Bonus (2289) 2289 TOTAL SCORE: 8400 Bonus ------- Pacifist 200 High Alert Combat Kills 546 Follower Combat Kills 143 Entered Garrisons 400 Used RIF Installer 1000 Cogmind --------- Core Integrity 142/700 Matter 72/300 Energy 100/100 System Corruption 0% Temperature Cool (76) Movement Core (150) Ox2 Location -7/Factory Parts ------- > --- POWER (1) -------- (None) > --- PROPULSION (4) --- (None) > --- UTILITY (6) ------ Improved Signal Interpreter Transport Network Coupler > --- WEAPON (2) ------- Mini Assault Cannon Mini Assault Cannon > --- INVENTORY (5) ---- Relay Coupler [Cutter] (37) Relay Coupler [Grunt] (37) Relay Coupler [Duelist] (34) Relay Coupler [Demolisher] (32) Relay Coupler [Hunter] (20) Peak State ------------ > --- POWER ------------ Heavy Deuterium Engine > --- PROPULSION ------- Light Treads Light Treads Light Treads Light Treads > --- UTILITY ---------- Cooling System Huge Storage Unit Improved Signal Interpreter Transport Network Coupler Matter Filter Core Shielding > --- WEAPON ----------- Mini Assault Cannon Mini Assault Cannon > --- INVENTORY -------- Heavy Ion Engine Light Angular Momentum Engine Light Treads Improved Signal Interpreter Relay Coupler [NC] Relay Coupler [Cutter] Relay Coupler [Grunt] Relay Coupler [Grunt] Relay Coupler [Grunt] Relay Coupler [Duelist] Relay Coupler [Demolisher] Relay Coupler [Specialist] Relay Coupler [Hunter] Heavy Ion Cannon Heavy Ion Cannon High-powered Shotgun High-powered Shotgun High-powered Shotgun Guided Missile Launcher [Rating: 38] Favorites ----------- Power Heavy Ion Engine Engine Heavy Ion Engine Propulsion Light Treads Treads Light Treads Wheel Compact Wheel Utility Huge Storage Unit Device Cooling System Storage Huge Storage Unit Processor Improved Signal Interpreter Protection Improved Propulsion Shielding Weapon High-powered Shotgun Energy Gun Particle Gun Ballistic Gun High-powered Shotgun Ballistic Cannon Mini Assault Cannon Launcher Guided Missile Launcher Build | -11 -10 -9 -9 -9 -9 -7 -7 -7 ------- Run | Scr Mat Mat Sto Gar Rec Fac Gar Fac Slots Evolved 6 | . . 2 . . . 4 . . Power . | . . . . . . . . . Propulsion 2 | . . 2 . . . . . . Utility 4 | . . . . . . 4 . . Weapon . | . . . . . . . . . Parts Attached 53 | . 1 11 3 11 . 9 5 13 Power 4 | . . 2 . . . 1 . 1 Engine 4 | . . 2 . . . 1 . 1 Core . | . . . . . . . . . Reactor . | . . . . . . . . . Propulsion 13 | . . 4 2 2 . 1 1 3 Treads 12 | . . 4 2 2 . 1 1 2 Leg . | . . . . . . . . . Wheel 1 | . . . . . . . . 1 Hover . | . . . . . . . . . Flight . | . . . . . . . . . Utility 14 | . 1 3 1 2 . 5 1 1 Device 2 | . . . . . . 1 1 . Storage 2 | . . 1 . . . . . 1 Processor 3 | . . 1 . . . 2 . . Hackware . | . . . . . . . . . Protection 7 | . 1 1 1 2 . 2 . . Artifact . | . . . . . . . . . Weapon 22 | . . 2 . 7 . 2 3 8 Energy Gun 1 | . . . . . . . . 1 Energy Cannon . | . . . . . . . . . Ballistic Gun 9 | . . 2 . 5 . . . 2 Ballistic Cannon 7 | . . . . . . 2 2 3 Launcher 5 | . . . . 2 . . 1 2 Special Weapon . | . . . . . . . . . Impact Weapon . | . . . . . . . . . Slashing Weapon . | . . . . . . . . . Piercing Weapon . | . . . . . . . . . Special Melee Weapon . | . . . . . . . . . Unidentified Prototypes 5 | . . 1 . 1 . 2 . 1 Parts Lost 22 | . . . 5 2 . 2 3 10 Power 1 | . . . . . . . . 1 Propulsion 12 | . . . 4 . . 1 2 5 Utility 7 | . . . . 2 . 1 1 3 Weapon 2 | . . . 1 . . . . 1 Highest Loss Streak 4 | . . . 3 1 . 2 2 4 Average Slot Usage (%) 85 | . 1 77 91 94 100 92 94 69 Engine 9 | . . 9 11 11 11 7 7 6 Treads 29 | . . 26 36 39 44 29 27 11 Device 2 | . . . . . . 1 8 9 Storage 8 | . . 5 11 11 11 7 7 5 Processor 7 | . . . 8 . . 15 15 15 Protection 9 | . 1 15 2 11 11 15 10 6 Ballistic Gun 13 | . . 20 21 20 22 3 . 1 Ballistic Cannon 4 | . . . . . . 11 14 8 Naked Turns 86 | . 86 . . . . . . . Heaviest Build 105 | . 1 96 96 96 96 104 105 105 Greatest Support 80 | 3 3 80 80 80 80 80 80 40 Greatest Overweight (x) 5 | . . 5 4 2 1 1 2 5 Average Overweight (x) . | . . . 1 1 1 1 1 1 Largest Inventory Capacity 25 | 5 5 25 25 25 25 25 25 25 Average Capacity 22 | 5 5 14 25 25 25 25 25 21 Most Carried 21 | . 1 13 15 18 15 16 20 21 Average Carried 13 | . . 7 13 14 15 13 17 13 Final Capacity 25 | 5 5 25 25 25 25 25 25 5 Final Carried 20 | . 1 13 13 15 15 14 20 5 Class Distribution -------------------- 58% | Scavenger-Mutant 35% | Mutant 5% | Commander-Mutant Dominant Class ---------------- Mutant | -10/Materials Scavenger-Mutant | -9/Materials Scavenger-Mutant | -9/Storage Scavenger-Mutant | -9/Garrison Scavenger-Mutant | -9/Recycling Scavenger-Mutant | -7/Factory Scavenger-Mutant | -7/Garrison Mutant | -7/Factory Resources | -11 -10 -9 -9 -9 -9 -7 -7 -7 ----------- Run | Scr Mat Mat Sto Gar Rec Fac Gar Fac Matter Collected 1767 | 106 . 388 301 153 183 118 321 197 Remotely . | . . . . . . . . . Salvage Created 2013 | . . 472 400 277 8 103 350 403 Parts 109 | . . 25 17 29 2 5 16 15 Haulers Intercepted 5 | . . 3 . . . 1 . 1 Recyclers Shooed 3 | . . 1 . . . . . 2 Parts Field Recycled . | . . . . . . . . . Retrieved Matter . | . . . . . . . . . Parts Self-Destructed . | . . . . . . . . . Prevented . | . . . . . . . . . Kills | -11 -10 -9 -9 -9 -9 -7 -7 -7 ------- Run | Scr Mat Mat Sto Gar Rec Fac Gar Fac Combat Hostiles Destroyed 60 | . . 7 12 14 1 2 12 12 Guns 28 | . . 7 12 7 1 . . 1 Cannons 16 | . . . . . . 2 9 5 AOE 16 | . . . . 7 . . 3 6 Classes Destroyed 10 | . . 5 1 1 1 . 1 1 Builder 1 | . . . . . . . . 1 Hauler 5 | . . 3 . . . 1 . 1 Recycler 2 | . . 1 . . . . . 1 Drone 1 | . . . . . 1 . . . Swarmer 17 | . . . 2 7 . . 3 5 Grunt 25 | . . 4 5 5 . 1 5 5 Brawler 1 | . . 1 . . . . . . Duelist 2 | . . . . 1 . . . 1 Sentry 13 | . . 2 5 1 . 1 3 1 Hunter 1 | . . . . . . . 1 . Best Kill Streak 10 | . . 4 3 10 1 1 4 4 Combat Bots Only 10 | . . 3 3 10 1 1 4 3 Max Kills in Single Turn 4 | . . 2 2 4 1 1 3 2 Gunslinging 1 | . . . 1 1 . . . . Exploded 4 | . . . . 4 . . 3 2 Melee . | . . . . . . . . . Uniques/NPCs Destroyed . | . . . . . . . . . Combat | -11 -10 -9 -9 -9 -9 -7 -7 -7 -------- Run | Scr Mat Mat Sto Gar Rec Fac Gar Fac Damage Taken 3874 | . . 175 973 581 . 206 726 1213 Core 788 | . . 43 133 54 . 43 87 428 Absorbed by Shields . | . . . . . . . . . Core Remaining (%) 80 | 100 100 . . . 42 . . . Volleys Fired 156 | . . 23 36 20 6 11 25 35 Largest 2 | . . 2 2 2 2 2 2 2 Hottest 96 | . . 50 50 50 50 96 96 96 Shots Fired 279 | . . 46 70 36 12 22 47 46 Gun 178 | . . 46 70 32 12 6 . 12 Cannon 84 | . . . . . . 16 44 24 Launcher 17 | . . . . 4 . . 3 10 Special . | . . . . . . . . . Kinetic 258 | . . 46 70 32 12 22 44 32 Thermal 4 | . . . . . . . . 4 Explosive 17 | . . . . 4 . . 3 10 Electromagnetic . | . . . . . . . . . Robot Hit Streak 11 | . . 6 11 11 1 4 8 9 Robot Miss Streak 13 | . . 6 6 3 9 13 2 5 Penetration Max . | . . . . . . . . . Secondary Targets 2 | . . . 1 1 . . . . Max Gunslinging Chain 1 | . . . 1 1 . . . . Shots Hit Robots 180 | . . 30 52 24 2 13 29 30 Core Hits 117 | . . 20 23 19 1 6 22 26 Critical Kills 1 | . . . 1 . . . . . Critical Parts Destroyed 2 | . . . 1 1 . . . . Critical Strikes 8 | . . . 2 1 . . 5 . Destroy 3 | . . . 2 1 . . . . Blast 5 | . . . . . . . 5 . Melee Attacks . | . . . . . . . . . Impact . | . . . . . . . . . Slashing . | . . . . . . . . . Piercing . | . . . . . . . . . Sneak Attacks . | . . . . . . . . . Combat Hostiles . | . . . . . . . . . Follow-up Attacks . | . . . . . . . . . Damage Inflicted 5302 | . . 636 1008 869 35 311 1208 1235 Guns 2304 | . . 636 998 425 35 72 . 138 Cannons 1449 | . . . . . . 239 783 427 Explosions 1539 | . . . . 444 . . 425 670 Melee . | . . . . . . . . . Ramming 10 | . . . 10 . . . . . Kinetic 3705 | . . 636 998 425 35 311 783 517 Thermal 48 | . . . . . . . . 48 Explosive 1539 | . . . . 444 . . 425 670 Electromagnetic . | . . . . . . . . . Impact . | . . . . . . . . . Slashing . | . . . . . . . . . Piercing . | . . . . . . . . . Highest Corruption 1 | . 1 . . . . . . . Average Corruption 1 | . 1 . . . . . . . Corruption Purged . | . . . . . . . . . Overload Shots . | . . . . . . . . . Overflow Damage 58 | . . . . 38 . . . 20 Projectiles . | . . . . . . . . . Explosions 58 | . . . . 38 . . . 20 Melee . | . . . . . . . . . Knockbacks 10 | . . . . . . 2 4 4 Impact . | . . . . . . . . . Kinetic 10 | . . . . . . 2 4 4 Secondary . | . . . . . . . . . Self-Inflicted Damage . | . . . . . . . . . Shots . | . . . . . . . . . Rammed 1 | . . . 1 . . . . . Targets Rammed 1 | . . . 1 . . . . . Kicked . | . . . . . . . . . Crushed . | . . . . . . . . . Highest Temperature 106 | . . 21 21 6 . 69 4 106 Average Temperature 25 | . . 10 5 5 . 39 3 38 Received Heat Transfer 1206 | . . 93 333 153 . 81 216 330 Siege Activations . | . . . . . . . . . Robots Corrupted . | . . . . . . . . . Combat Hostiles . | . . . . . . . . . Parts Fried . | . . . . . . . . . Impact Corruptions . | . . . . . . . . . Robots Melted . | . . . . . . . . . Combat Hostiles . | . . . . . . . . . Parts Melted . | . . . . . . . . . Heat Transferred 111 | . . . . . . . . 111 Parts Sabotaged . | . . . . . . . . . Parts Stolen . | . . . . . . . . . Parts Stripped . | . . . . . . . . . Power Chain Reactions . | . . . . . . . . . Missiles Intercepted . | . . . . . . . . . Alert | -11 -10 -9 -9 -9 -9 -7 -7 -7 ------- Run | Scr Mat Mat Sto Gar Rec Fac Gar Fac Peak Influence 1117 | . 15 226 213 615 343 1109 1117 833 Initial 1043 | . . 5 23 140 276 1043 776 585 Average 440 | . 7 96 119 407 294 1060 956 656 Maximum Alert Level 4 | . . 1 1 2 1 4 4 3 Low Security (%) 35 | 100 100 71 85 4 . . . . Level 1 22 | . . 28 14 57 100 . . . Level 2 15 | . . . . 37 . . . 76 Level 3 24 | . . . . . . 88 94 23 Level 4 1 | . . . . . . 11 5 . Level 5 . | . . . . . . . . . High Security . | . . . . . . . . . Max Security . | . . . . . . . . . Squads Dispatched 14 | . 3 1 5 . . 2 . 3 Investigation 1 | . . 1 . . . . . . Extermination . | . . . . . . . . . Reinforcement 7 | . 3 . 2 . . 1 . 1 Assault 2 | . . . . . . . . 2 Garrison 4 | . . . 3 . . 1 . . Intercept . | . . . . . . . . . Construction Impeded . | . . . . . . . . . Haulers Reinforced 2 | . . . . . . 1 . 1 Active Scanning Responses . | . . . . . . . . . Cargo Convoy Interrupts . | . . . . . . . . . Stealth | -11 -10 -9 -9 -9 -9 -7 -7 -7 --------- Run | Scr Mat Mat Sto Gar Rec Fac Gar Fac Distress Signals 2 | . . 1 1 . . . . . Communications Jammed . | . . . . . . . . . Distress Signals . | . . . . . . . . . Times Spotted 87 | . 2 8 24 14 9 2 12 16 Peak Tracking Total 7 | . 3 4 5 7 4 1 4 6 Tactical Retreats 2 | . . . 1 . . . 1 . Traps | -11 -10 -9 -9 -9 -9 -7 -7 -7 ------- Run | Scr Mat Mat Sto Gar Rec Fac Gar Fac Traps Triggered 4 | . 1 . . 2 . . 1 . Indirectly . | . . . . . . . . . Trap Hack Attempts . | . . . . . . . . . Triggered . | . . . . . . . . . Disarmed . | . . . . . . . . . Reprogrammed . | . . . . . . . . . Reused . | . . . . . . . . . Traps Extracted . | . . . . . . . . . Installed . | . . . . . . . . . Triggered . | . . . . . . . . . Machines | -11 -10 -9 -9 -9 -9 -7 -7 -7 ---------- Run | Scr Mat Mat Sto Gar Rec Fac Gar Fac Machines Disabled 3 | . . . 1 1 . . 1 . Max in Single Turn 1 | . . . 1 1 . . 1 . Garrison Relay 2 | . . . . 1 . . 1 . Machines Sabotaged . | . . . . . . . . . Garrisons Compromised . | . . . . . . . . . Overloaded Fab Kills . | . . . . . . . . . Fab Network Shutdowns . | . . . . . . . . . Hacking | -11 -10 -9 -9 -9 -9 -7 -7 -7 --------- Run | Scr Mat Mat Sto Gar Rec Fac Gar Fac Machines Accessed 6 | . . 1 3 . . 1 . 1 Terminals 4 | . . 1 2 . . . . 1 Fabricators . | . . . . . . . . . Repair Stations . | . . . . . . . . . Recycling Units . | . . . . . . . . . Scanalyzers . | . . . . . . . . . Garrison Access 2 | . . . 1 . . 1 . . Total Hacks 10 | . . 2 5 . . 1 . 2 Successful 4 | . . . 3 . . 1 . . Failed 6 | . . 2 2 . . . . 2 Catastrophic 2 | . . 1 . . . . . 1 Database Lockouts . | . . . . . . . . . Manual . | . . . . . . . . . Terminals 7 | . . 2 3 . . . . 2 Fabricators . | . . . . . . . . . Repair Stations . | . . . . . . . . . Recycling Units . | . . . . . . . . . Scanalyzers . | . . . . . . . . . Garrison Access 3 | . . . 2 . . 1 . . Terminal Hacks 2 | . . . 2 . . . . . Open Door 2 | . . . 2 . . . . . Fabricator Hacks . | . . . . . . . . . Repair Station Hacks . | . . . . . . . . . Recycling Unit Hacks . | . . . . . . . . . Scanalyzer . | . . . . . . . . . Garrison Access Hacks 2 | . . . 1 . . 1 . . Unlock Access 2 | . . . 1 . . 1 . . Unauthorized Hacks . | . . . . . . . . . Terminals . | . . . . . . . . . Fabricators . | . . . . . . . . . Repair Stations . | . . . . . . . . . Recycling Units . | . . . . . . . . . Scanalyzers . | . . . . . . . . . Garrison Access . | . . . . . . . . . Data Cores Recovered . | . . . . . . . . . Used . | . . . . . . . . . Hacking Detections 4 | . . 1 2 . . . . 1 Full Trace Events 1 | . . 1 . . . . . . Feedback Events . | . . . . . . . . . Feedback Blocked . | . . . . . . . . . Robot Schematics Acquired . | . . . . . . . . . Robots Built . | . . . . . . . . . Matter . | . . . . . . . . . Time . | . . . . . . . . . Total Robot Build Rating . | . . . . . . . . . Part Schematics Acquired . | . . . . . . . . . Parts Built . | . . . . . . . . . Matter . | . . . . . . . . . Time . | . . . . . . . . . Total Part Build Rating . | . . . . . . . . . Parts Repaired . | . . . . . . . . . Time . | . . . . . . . . . Parts Recycled . | . . . . . . . . . Recycled Matter . | . . . . . . . . . Retrieved Matter . | . . . . . . . . . Retrieved Components . | . . . . . . . . . Parts Scanalyzed . | . . . . . . . . . Part Schematics Acquired . | . . . . . . . . . Parts Damaged . | . . . . . . . . . Bothacking | -11 -10 -9 -9 -9 -9 -7 -7 -7 ------------ Run | Scr Mat Mat Sto Gar Rec Fac Gar Fac Used RIF Installer 2 | . . . . 1 . . 1 . Coupler Efficiency 1 | . . . . . . . 1 . Robots Hacked . | . . . . . . . . . Non-combat . | . . . . . . . . . Combat . | . . . . . . . . . Robot Hacks Applied . | . . . . . . . . . Relay Couplers Released 9 | . . . . 5 . . 4 . Machine Destruction 9 | . . . . 5 . . 4 . Robots Rewired . | . . . . . . . . . Allies Hacked . | . . . . . . . . . Hacks Repelled . | . . . . . . . . . Allies | -11 -10 -9 -9 -9 -9 -7 -7 -7 -------- Run | Scr Mat Mat Sto Gar Rec Fac Gar Fac Total Allies 10 | . . . 10 . . . . . Largest Group 10 | . . . 10 . . . . . Highest-Rated Group 88 | . . . 88 . . . . . Highest-Rated Ally 16 | . . . 16 . . . . . Total Orders . | . . . . . . . . . Ally Attacks 29 | . . . 29 . . . . . Total Damage 251 | . . . 251 . . . . . Kills 6 | . . . 6 . . . . . Allies Corrupted . | . . . . . . . . . Allies Melted . | . . . . . . . . . Intel | -11 -10 -9 -9 -9 -9 -7 -7 -7 ------- Run | Scr Mat Mat Sto Gar Rec Fac Gar Fac Robot Analysis Total . | . . . . . . . . . Derelict Logs Recovered . | . . . . . . . . . Drone Launches . | . . . . . . . . . Drone Recoveries . | . . . . . . . . . Exploration | -11 -10 -9 -9 -9 -9 -7 -7 -7 ------------- Run | Scr Mat Mat Sto Gar Rec Fac Gar Fac Turns Passed 3454 | 10 89 589 785 523 200 292 512 454 Spaces Moved 1260 | 20 166 272 214 160 71 93 157 107 Core 311 | 20 166 122 . . . . . 3 Treads 939 | . . 150 214 160 71 93 157 94 Legs . | . . . . . . . . . Wheels 10 | . . . . . . . . 10 Hover . | . . . . . . . . . Flight . | . . . . . . . . . Fastest Speed 50 | 50 50 50 260 260 260 260 260 100 Average Speed 224 | 50 50 169 292 276 260 260 272 324 Slowest Speed 560 | 50 50 300 560 360 260 260 360 560 Overloaded Moves . | . . . . . . . . . Propulsion Burnouts . | . . . . . . . . . Robots Hopped . | . . . . . . . . . Cave-ins Triggered . | . . . . . . . . . Exploration Rate (%) 21 | 3 40 19 30 34 18 3 40 2 Regions Visited 8 Branch Regions 2 Pre-discovered Areas 1 | . . . 1 . . . . . Known Exits Taken 3 | . . 1 1 . . 1 . . Unknown Exits Taken 3 | 1 1 . . . 1 . . . Scrap Searched . | . . . . . . . . . Spaces Dug 3 | . . . . . . . 3 . Terrain Destroyed 53 | . . . . 13 . 3 6 31 Melee . | . . . . . . . . . Projectile 5 | . . . . . . 3 . 2 AOE 48 | . . . . 13 . . 6 29 Terrain Rammed . | . . . . . . . . . Walls Destroyed . | . . . . . . . . . Machines Disabled . | . . . . . . . . . Actions | -11 -10 -9 -9 -9 -9 -7 -7 -7 --------- Run | Scr Mat Mat Sto Gar Rec Fac Gar Fac Total 1610 | 19 170 351 302 208 76 120 196 168 Wait 84 | . 3 30 46 3 . 2 . . Move 1254 | 19 165 271 214 159 70 93 156 107 Hop . | . . . . . . . . . Pick Up 32 | . 1 14 1 5 . 2 5 4 Fast Attach 26 | . 1 8 1 2 . 4 1 9 Attach 24 | . . 1 2 9 . 5 3 4 Detach 14 | . . . 1 6 . 2 3 2 Swap 3 | . . 2 . . . . 1 . Drop 10 | . . 2 . . . 1 . 7 Fire 156 | . . 23 36 20 6 11 25 35 Melee . | . . . . . . . . . Ram . | . . . . . . . . . Kick . | . . . . . . . . . Crush 1 | . . . 1 . . . . . Escape Stasis 6 | . . . . 4 . . 2 . Rewire . | . . . . . . . . . Trap . | . . . . . . . . . Miscellaneous . | . . . . . . . . . Route ------- -11/Scrapyard -10/Materials -9/Materials -9/Storage -9/Garrison -9/Recycling -7/Factory -7/Garrison -7/Factory History --------- Turn | Location | Event 5 | -11/Scrapyard | Discovered new exit (range 14) 11 | -11/Scrapyard | Entered Materials 93 | -10/Materials | Discovered new exit (range 11) 100 | -10/Materials | Entered another Materials area 100 | -9/Materials | Evolved 2 slots: Propulsion x2 304 | -9/Materials | Build established: Mutant 338 | -9/Materials | Discovered new exit (range 8) 689 | -9/Materials | Identified exit to Storage 689 | -9/Materials | Entered Storage 708 | -9/Storage | Found Prototype Launcher 709 | -9/Storage | Build established: Scavenger-Mutant 931 | -9/Storage | Assisted by bots powering up and referring to "LRC-V3" 948 | -9/Storage | Learned location of Armory (-4) 1182 | -9/Storage | Garrison activated, responded to threat 1287 | -9/Storage | Lost 3 parts (3n) 1474 | -9/Storage | Identified exit to Garrison 1474 | -9/Storage | Entered Garrison 1529 | -9/Garrison | Build established: Mutant 1602 | -9/Garrison | Triggered checkpoint 1634 | -9/Garrison | Garrison Relay disabled 1802 | -9/Garrison | Triggered checkpoint 1802 | -9/Garrison | Triggered checkpoint 1809 | -9/Garrison | Identified Gui. Missile Launcher 1845 | -9/Garrison | Core integrity fell below 50% 1873 | -9/Garrison | Destroyed 10 combat bots 1877 | -9/Garrison | Build established: Scavenger-Mutant 1940 | -9/Garrison | Discovered new exit (range 12) 1986 | -9/Garrison | Installed Relay Interface Framework 1997 | -9/Garrison | Entered Recycling 2080 | -9/Recycling | Spotter reported a threat 2091 | -9/Recycling | Spotter reported a threat 2091 | -9/Recycling | Spotter reported a threat 2100 | -9/Recycling | Spotter reported a threat 2123 | -9/Recycling | Spotter reported a threat 2142 | -9/Recycling | Spotter reported a threat 2144 | -9/Recycling | Spotter reported a threat 2163 | -9/Recycling | Spotter reported a threat 2174 | -9/Recycling | Discovered new exit (range 6) 2176 | -9/Recycling | Spotter reported a threat 2195 | -9/Recycling | Spotter reported a threat 2197 | -9/Recycling | Entered Factory 2197 | -7/Factory | Evolved 4 slots: Utility x4 2422 | -7/Factory | Garrison activated, responded to threat 2489 | -7/Factory | Identified exit to Garrison 2489 | -7/Factory | Entered Garrison 2502 | -7/Garrison | Expanded RIF knowledge: Coupler Efficiency 2550 | -7/Garrison | Triggered checkpoint 2591 | -7/Garrison | Garrison Relay disabled 2714 | -7/Garrison | Triggered checkpoint 2908 | -7/Garrison | Triggered checkpoint 2928 | -7/Garrison | Discovered new exit (range 14) 2993 | -7/Garrison | Identified exit to Factory 3001 | -7/Garrison | Entered Factory 3208 | -7/Factory | Build established: Mutant 3263 | -7/Factory | Lost 3 parts (2n1u) 3400 | -7/Factory | Lost 3 parts (1n1u1w) 3401 | -7/Factory | First assault squad dispatched 3447 | -7/Factory | Core integrity fell below 50% 3455 | -7/Factory | Self-destructed Last Messages --------------- 03416_ R-06 Scavenger collects VTOL Module. 03417_ Core Shielding destroyed. 03419_ R-06 Scavenger collects Autogun. 03419_ Lgt. Treads destroyed. 03419_ Acquired Com. Wheel. 03428_ Dropped Huge Storage Unit. 03429_ Acquired Mni. Assault Cannon. 03431_ Dropped Particle Gun. 03431_ L-41 Fighter knocked back. 03438_ Acquired Mni. Assault Cannon. 03441_ Mni. Assault Cannon severed. 03443_ Cld. Deuterium Engine destroyed. 03445_ Acquired Mni. Assault Cannon. 03446_ L-41 Fighter knocked back. 03448_ Critical hit (Burn: +37). 03452_ L-41 Fighter destroyed. 03452_ L-41 Fighter knocked back. 03453_ Acquired 44 matter. 03453_ Critical hit (Burn: +37). 03455_ Com. Wheel destroyed. Map ----- +----------------------------------------------------+ | ???????????????????????????????? ?????????????? | | ???????????????????????????????# = ???????????? | | ????????????????????????????### % ???????????? | | ????????????????????????????? " ?????????? | | ????????????????????????????? "%" # ????????? | | ??????????????????? ???????? # " # ????????? | | ???????????????? ???????? ""Y""?????? | | ?????????????? ???????? # """"??????? | | ??????????????# ???????? # ???????? | | ??????????????# ????????? # ###### ??? | | ???????????????^ ???????? ??? | | ??????????????? ????????# ?? | | ???????????????? ????????# ?? | | ?????????????????# #?????? # ? | | ?????????????????# #????####= ? | | ?????????????????# ####?##%#= ? | | ?????????????????# ##;### =#[* ? | | ?????????????????# % % ? | | ?????????????????# %*%* ?? | | ?????????????????# ]%** ! ?? | | ?????????????????+ % ] *[ ??? | | ?????????????????# % * !] % ??? | | ?????????????????# ##%g################### ??? | | ???????????????### #g!i]! #????????????????? | | ???????????????# #!l[""" #????????????????? | | ???????????????# #%@%""" #????????????????? | | ???????????????# #*!%""" #????????????????? | | ???????????????# #!!/ #????????????????? | | ???????????????# # """ #????????????????? | | ???????????????#### #### """ #????????????????? | | ??????????????????# #??# """ #????????????????? | | ??????????????????# #??# #????????????????? | | ??????????????????# #??##+#####+#????????????????? | | ??????????????????# #???# #??????????????????????? | | ??????????????????# #???# #??????????????????????? | | ???????????######## #???# #??????????????????????? | | ???????????# # #???# #??????????????????????? | | ???????????# """ # ##### ##### ##???????????????? | | ???????????# """ + = = ????????? | | ???????????# """ #######+########???????????????? | | ???????????# #?# #??????????????????? | | ???????????# #?# """"" #??????????????????? | | ???????????#######??# ""T"" #??????????????????? | | ????????????????????# #??????????????????? | | ????????????????????###########??????????????????? | | | | | | | | | | | +----------------------------------------------------+ Best States ------------- Heat Dissipation 56 Energy Generation 18 Energy Capacity 310 Matter Stores 300 Matter Capacity 300 Sight Range 16 Terrain Scan Density 10 Core Shielding 20 Propulsion Shielding 66 Evasion (%) 50 Recoil Reduction 4 Matter Filtering 30 Item Schematics ----------------- None Robot Schematics ------------------ None Fabricated ------------ Nothing Alien Tech Used ----------------- None Achievements -------------- None Challenges ------------ None Game ------ Seed PhasingDimensionalClaw Manual? 1 Play Time 00:25:27 Cumulative 1092.7 hours Start 2021.09.03 @ 23:27:00 End 2021.09.03 @ 23:47:54 Sessions 1 Manual Loads 0 Difficulty Rogue Special Mode None Game No. 694 Rogue 694 Adventurer 0 Explorer 0 Win Type - Total 18 Types 10/1/4/3/0/0/0/0/0 Lore% 89 Gallery% 91 Achievement% 81 Wizard Run 0 Options --------- ASCII 0 Keyboard 0 Movement Mouse Keybinds 0 Fullscreen 1 Font 24/Smallcaps Map View 76x50 Tactical HUD 1 Map Filters NONE Filters NONE Steam 1 RUN: 85ef8316-a21c-4e00-9aa7-717a159c7402